fUSD/lending_fUSD_20260404
["ID","MTS","AMOUNT","RATE_DAILY","PERIOD"]
[419667794,1775271032241,-167.0,9.912e-05,2]
[419667795,1775271032250,-2932.3,9.919e-05,2]
[419667796,1775271032260,-2932.3,9.919e-05,2]
[419667797,1775271032269,-2932.3,9.919e-05,2]
[419667798,1775271032280,-500.0,9.919e-05,2]
[419667799,1775271032290,-1047.73442998,9.973e-05,2]
[419667803,1775271032848,-343.29292514,9.973e-05,2]
[419667804,1775271032859,-18.85264488,9.973e-05,2]
[419667805,1775271032869,-151.0,9.997e-05,2]
[419667806,1775271032879,-1000.0,9.999e-05,2]
[419667807,1775271032888,-200.0,0.0001,2]
[419667808,1775271032898,-16600.0,0.0001,2]
[419667809,1775271032907,-504.26932362,0.0001,2]
[419667810,1775271032916,-345.64,0.0001,2]
[419667811,1775271032926,-224.68,0.0001,2]
[419667812,1775271032936,-198.19,0.0001,2]
[419667813,1775271032945,-219.06,0.0001,2]
[419667814,1775271032954,-500.0,0.0001,2]
[419667815,1775271032964,-500.0,0.0001,2]
[419667816,1775271032973,-500.0,0.0001,2]
[419667817,1775271032982,-500.0,0.0001,2]
[419667818,1775271032991,-500.0,0.0001,2]
[419667819,1775271033000,-500.0,0.0001,2]
[419667820,1775271033010,-500.0,0.0001,2]
[419667821,1775271033019,-500.0,0.0001,2]
[419667822,1775271033028,-500.0,0.0001,2]
[419667823,1775271033037,-500.0,0.0001,2]
[419667824,1775271033046,-500.0,0.0001,2]
[419667825,1775271033056,-151.0,0.0001,2]
[419667826,1775271033065,-151.0,0.0001,2]
[419667827,1775271033074,-151.0,0.0001,2]
[419667828,1775271033083,-151.0,0.0001,2]
[419667829,1775271033092,-500.0,0.0001,2]
[419667830,1775271033101,-500.0,0.0001,2]
[419667831,1775271033110,-500.0,0.0001,2]
[419667832,1775271033119,-500.0,0.0001,2]
[419667833,1775271033129,-151.0,0.0001,2]
[419667834,1775271033138,-500.0,0.0001,2]
[419667835,1775271033147,-151.0,0.0001,2]
[419667836,1775271033156,-500.0,0.0001,2]
[419667837,1775271033165,-151.0,0.0001,2]
[419667838,1775271033174,-500.0,0.0001,2]
[419667839,1775271033183,-151.0,0.0001,2]
[419667840,1775271033192,-500.0,0.0001,2]
[419667841,1775271033201,-151.0,0.0001,2]
[419667842,1775271033211,-151.0,0.0001,2]
[419667843,1775271033220,-500.0,0.0001,2]
[419667844,1775271033229,-151.0,0.0001,2]
[419667845,1775271033238,-151.0,0.0001,2]
[419667846,1775271033248,-500.0,0.0001,2]
[419667847,1775271033256,-151.0,0.0001,2]
[419667848,1775271033266,-151.0,0.0001,2]
[419667849,1775271033275,-500.0,0.0001,2]
[419667850,1775271033284,-151.0,0.0001,2]
[419667851,1775271033294,-151.0,0.0001,2]
[419667852,1775271033303,-151.0,0.0001,2]
[419667853,1775271033312,-151.0,0.0001,2]
[419667854,1775271033321,-151.0,0.0001,2]
[419667855,1775271033330,-151.0,0.0001,2]
[419667856,1775271033339,-151.0,0.0001,2]
[419667857,1775271033348,-151.0,0.0001,2]
[419667858,1775271033357,-151.83540039,0.0001,2]
[419667859,1775271033366,-151.0,0.0001,2]
[419667860,1775271033375,-479.30204542,0.0001,2]
[419667861,1775271033384,-151.0,0.0001,2]
[419667862,1775271033393,-151.0,0.0001,2]
[419667863,1775271033402,-151.0,0.0001,2]
[419667864,1775271033411,-151.0,0.0001,2]
[419667865,1775271033420,-151.0,0.0001,2]
[419667866,1775271033429,-151.0,0.0001,2]
[419667867,1775271033439,-151.0,0.0001,2]
[419667868,1775271033448,-151.0,0.0001,2]
[419667869,1775271033457,-200.0,0.0001,2]
[419667870,1775271033466,-182.51,0.00010068,2]
[419667871,1775271033476,-2070.7998187,0.000101,2]
[419667872,1775271033484,-285.22,0.000101,2]
[419667873,1775271033494,-171.7,0.000101,2]
[419667874,1775271033503,-171.7,0.000101,2]
[419667875,1775271033512,-171.7,0.000101,2]
[419667876,1775271033522,-2846.8,0.000101,2]
[419667877,1775271033532,-200.0,0.000101,2]
[419667878,1775271033543,-200.0,0.000101,2]
[419667879,1775271033552,-959.2265,0.00010185,2]
[419667880,1775271033562,-3589.92471501,0.00010185,2]
[419667881,1775271033571,-200.0,0.00010201,2]
[419667882,1775271033581,-163.0,0.00010247,2]
[419667883,1775271033590,-350.0,0.00010259,2]
[419667884,1775271033600,-166.66,0.00010273,2]
[419667885,1775271033611,-151.0,0.00010282,2]
[419667886,1775271033620,-156.327,0.00010284,2]
[419667887,1775271033630,-1739.21549642,0.000103,2]
[419667888,1775271033639,-200.0,0.00010303,2]
[419667889,1775271033648,-2000.0,0.00010339,2]
[419667890,1775271033658,-585.15459984,0.00010382,2]
[419667891,1775271033667,-171.7,0.00010385,2]
[419667892,1775271033678,-171.7,0.00010385,2]
[419667893,1775271033687,-171.7,0.00010385,2]
[419667894,1775271033696,-150.0,0.00010387,2]
[419667895,1775271033706,-5533.0,0.000104,3]
[419667896,1775271033716,-200.0,0.00010406,2]
[419667897,1775271033725,-1000.0,0.0001041,2]
[419667898,1775271033735,-1000.0,0.00010416,2]
[419667899,1775271033744,-350.0,0.00010422,2]
[419667900,1775271033753,-1000.0,0.00010424,2]
[419667901,1775271033762,-1000.0,0.00010436,2]
[419667902,1775271033771,-1000.0,0.00010438,2]
[419667903,1775271033780,-1000.0,0.00010448,2]
[419667904,1775271033790,-150.0,0.00010451,2]
[419667905,1775271033799,-14041.0,0.00010466,2]
[419667906,1775271033808,-1000.0,0.00010467,2]
[419667907,1775271033817,-1000.0,0.00010468,2]
[419667908,1775271033827,-1000.0,0.00010469,2]
[419667909,1775271033836,-1000.0,0.00010475,2]
[419667910,1775271033845,-1000.0,0.00010476,2]
[419667911,1775271033855,-1000.0,0.00010482,2]
[419667912,1775271033864,-1000.0,0.00010482,2]
[419667913,1775271033874,-350.0,0.00010485,2]
[419667914,1775271033883,-290.0,0.00010485,2]
[419667915,1775271033892,-5139.63528494,0.00010485,2]
[419667916,1775271033902,-5000.0,0.00010486,2]
[419667917,1775271033911,-250.0,0.00010486,2]
[419667918,1775271033920,-5000.0,0.00010486,2]
[419667919,1775271033929,-5000.0,0.00010486,2]
[419667920,1775271033938,-250.0,0.00010486,2]
[419667921,1775271033947,-1000.0,0.000105,2]
[419667922,1775271033956,-1000.0,0.00010501,2]
[419667923,1775271033966,-1000.0,0.00010502,2]
[419667924,1775271033976,-1000.0,0.00010506,2]
[419667925,1775271033985,-1000.0,0.00010506,2]
[419667926,1775271033994,-1000.0,0.00010527,2]
[419667927,1775271034003,-1000.0,0.00010529,2]
[419667928,1775271034013,-150.0,0.00010531,2]
[419667929,1775271034022,-1000.0,0.00010532,2]
[419667930,1775271034031,-1000.0,0.00010535,2]
[419667931,1775271034041,-1000.0,0.00010539,2]
[419667932,1775271034050,-1000.0,0.0001054,2]
[419667933,1775271034059,-1119.93558461,0.0001054,2]
[419667934,1775271034068,-150.0,0.00010546,2]
[419667935,1775271034077,-1000.0,0.00010551,2]
[419667936,1775271034086,-1000.0,0.00010563,2]
[419667937,1775271034095,-1000.0,0.00010572,2]
[419667938,1775271034104,-1000.0,0.00010582,2]
[419667939,1775271034113,-1000.0,0.00010583,2]
[419667940,1775271034122,-1000.0,0.00010583,2]
[419667941,1775271034131,-1000.0,0.00010584,2]
[419667942,1775271034140,-1000.0,0.00010593,2]
[419667943,1775271034149,-1000.0,0.00010594,2]
[419667944,1775271034159,-1000.0,0.00010596,2]
[419667945,1775271034168,-1000.0,0.00010596,2]
[419667946,1775271034178,-1000.0,0.00010602,2]
[419667947,1775271034187,-1000.0,0.00010603,2]
[419667948,1775271034196,-1000.0,0.00010614,2]
[419667949,1775271034206,-150.0,0.00010653,2]
[419667950,1775271034215,-1000.0,0.00010659,2]
[419667951,1775271034225,-350.0,0.00010665,2]
[419667952,1775271034235,-371.0695016,0.00010676,2]
[419667953,1775271034244,-350.0,0.00010685,2]
[419667954,1775271034253,-194.761681,0.00010692,2]
[419667955,1775271034262,-350.0,0.0001076,2]
[419667956,1775271034271,-1680.0,0.00010771,2]
[419667957,1775271034280,-250.0,0.00010771,2]
[419667958,1775271034289,-5000.0,0.00010772,2]
[419667959,1775271034299,-152.82488847,0.00010786,2]
[419667960,1775271034308,-5533.0,0.000108,5]
[419667961,1775271034318,-317.83534,0.0001091,2]
[419667962,1775271034327,-317.83534,0.0001091,2]
[419667963,1775271034337,-317.83534,0.0001091,2]
[419667964,1775271034346,-317.83534,0.0001091,2]
[419667965,1775271034355,-317.83534,0.0001091,2]
[419667966,1775271034365,-317.83534,0.0001091,2]
[419667967,1775271034374,-166.67,0.00010949,2]
[419667968,1775271034383,-150.0,0.00010959,2]
[419667969,1775271034393,-150.0,0.00010959,2]
[419667970,1775271034402,-160.58,0.00010959,2]
[419667971,1775271034411,-350.0,0.00010987,2]
[419667972,1775271034421,-5711.26523577,0.00011,2]
[419667973,1775271034431,-166.66,0.00011056,2]
[419667974,1775271034440,-12160.38324271,0.00011099,2]
[419667975,1775271034449,-12160.38324265,0.00011099,2]
[419667976,1775271034459,-12160.38324265,0.00011099,2]
[419667977,1775271034468,-150.0,0.00011233,2]
[419667978,1775271034477,-3283.41717271,0.00011292,2]
[419667979,1775271034487,-500.0,0.00011292,2]
[419667980,1775271034496,-500.0,0.00011292,2]
[419667981,1775271034505,-500.0,0.00011292,2]
[419667982,1775271034515,-500.0,0.00011292,2]
[419667983,1775271034524,-500.0,0.00011292,2]
[419667984,1775271034534,-500.0,0.00011292,2]
[419667985,1775271034544,-250.0,0.00011292,2]
[419667986,1775271034553,-500.0,0.00011292,2]
[419667987,1775271034562,-250.0,0.00011292,2]
[419667988,1775271034573,-500.0,0.00011292,2]
[419667989,1775271034583,-355.75741681,0.00011292,2]
[419667990,1775271034592,-500.0,0.00011292,2]
[419667991,1775271034602,-500.0,0.00011292,2]
[419667992,1775271034612,-500.0,0.00011292,2]
[419667993,1775271034622,-500.0,0.00011292,2]
[419667994,1775271034631,-500.0,0.00011292,2]
[419667995,1775271034641,-500.0,0.00011292,2]
[419667996,1775271034650,-500.0,0.00011292,2]
[419667997,1775271034660,-500.0,0.00011292,2]
[419667998,1775271034670,-500.0,0.00011292,2]
[419667999,1775271034679,-500.0,0.00011292,2]
[419668000,1775271034688,-500.0,0.00011292,2]
[419668001,1775271034697,-500.0,0.00011292,2]
[419668002,1775271034706,-151.0,0.00011292,2]
[419668003,1775271034715,-500.0,0.00011292,2]
[419668004,1775271034724,-500.0,0.00011292,2]
[419668005,1775271034734,-500.0,0.00011292,2]
[419668006,1775271034743,-174.61919141,0.00011292,2]
[419668007,1775271034752,-350.0,0.00011307,2]
[419668008,1775271034762,-155.0,0.00011312,2]
[419668009,1775271034771,-500.0,0.00011347,2]
[419668010,1775271034780,-151.0,0.00011347,2]
[419668011,1775271034789,-350.0,0.000114,2]
[419668012,1775271034799,-500.0,0.00011402,2]
[419668013,1775271034808,-151.0,0.00011402,2]
[419668014,1775271034817,-350.0,0.0001143,2]
[419668015,1775271034827,-500.0,0.00011457,2]
[419668016,1775271034836,-151.0,0.00011457,2]
[419668017,1775271034846,-2000.0,0.00011487,2]
[419668018,1775271034855,-2216.56,0.00011507,2]
[419668019,1775271034864,-500.0,0.00011512,2]
[419668020,1775271034874,-151.0,0.00011512,2]
[419668021,1775271034883,-500.0,0.00011567,2]
[419668022,1775271034893,-151.0,0.00011567,2]
[419668023,1775271034902,-521.35022304,0.00011577,2]
[419668024,1775271034911,-8241.30066104,0.00011578,2]
[419668025,1775271034921,-12160.38324265,0.00011589,2]
[419668026,1775271034930,-500.0,0.00011622,2]
[419668027,1775271034939,-151.0,0.00011622,2]
[419668028,1775271034949,-151.0,0.00011659,2]
[419668029,1775271034959,-151.0,0.00011662,2]
[419668030,1775271034968,-65105.11,0.00011662,2]
[419668031,1775271034978,-500.0,0.00011677,2]
[419668032,1775271034987,-151.0,0.00011677,2]
[419668033,1775271034996,-350.0,0.00011731,2]
[419668034,1775271035005,-500.0,0.00011732,2]
[419668035,1775271035014,-151.0,0.00011732,2]
[419668036,1775271035024,-500.0,0.00011787,2]
[419668037,1775271035033,-151.0,0.00011787,2]
[419668038,1775271035042,-350.0,0.00011819,2]
[419668039,1775271035052,-181.08010149,0.0001184,2]
[419668040,1775271035060,-500.0,0.00011842,2]
[419668041,1775271035070,-151.0,0.00011842,2]
[419668042,1775271035079,-748.25,0.00011844,2]
[419668043,1775271035089,-166.67,0.00011853,2]
[419668044,1775271035098,-151.0,0.000119,2]
[419668045,1775271035108,-151.0,0.000119,2]
[419668046,1775271035117,-151.0,0.000119,2]
[419668047,1775271035127,-151.793802,0.000119,2]
[419668048,1775271035137,-1000.0,0.000119,4]
[419668049,1775271035146,-1120.0,0.00011906,5]
[419668050,1775271035156,-1112.0,0.00011906,5]
[419668051,1775271035165,-307.51965628,0.00012049,2]
[419668052,1775271035174,-783.4,0.00012055,2]
[419668053,1775271035184,-12160.38324265,0.00012307,2]
[419668054,1775271035193,-155.0,0.00012341,2]
[419668055,1775271035203,-182.51,0.00012369,2]
[419668056,1775271035212,-187.78006525,0.00012388,2]
[419668057,1775271035221,-191.24,0.00012469,2]
[419668058,1775271035232,-9124.86,0.00012596,2]
[419668059,1775271035242,-2000.0,0.00012636,2]
[419668060,1775271035251,-166.67,0.00012757,2]
[419668061,1775271035260,-151.0,0.00012784,2]
[419668062,1775271035269,-194.72792766,0.00012936,2]
[419668063,1775271035279,-250.0,0.00013,2]
[419668064,1775271035288,-3629.93446876,0.00013026,2]
[419668065,1775271035297,-12160.38324265,0.00013026,2]
[419668066,1775271035306,-520.0,0.00013111,2]
[419668067,1775271035315,-748.25,0.0001316,2]
[419668068,1775271035324,-3240.0,0.00013425,2]
[419668069,1775271035334,-201.93286099,0.00013484,2]
[419668070,1775271035343,-302.0,0.00013491,2]
[419668071,1775271035352,-500.0,0.00013698,2]
[419668072,1775271035361,-500.0,0.00013698,2]
[419668073,1775271035370,-500.0,0.00013698,2]
[419668074,1775271035379,-500.0,0.00013698,2]
[419668075,1775271035388,-500.0,0.00013698,2]
[419668076,1775271035397,-500.0,0.00013698,2]
[419668077,1775271035407,-500.0,0.00013698,2]
[419668078,1775271035416,-193.61296005,0.00013698,2]
[419668079,1775271035425,-500.0,0.00013698,2]
[419668080,1775271035434,-500.0,0.00013698,2]
[419668081,1775271035443,-500.0,0.00013698,2]
[419668082,1775271035454,-500.0,0.00013698,2]
[419668083,1775271035464,-598.90354809,0.00013698,2]
[419668084,1775271035474,-500.0,0.00013698,2]
[419668085,1775271035483,-500.0,0.00013698,2]
[419668086,1775271035494,-500.0,0.00013698,2]
[419668087,1775271035504,-500.0,0.00013698,2]
[419668088,1775271035513,-500.0,0.00013698,2]
[419668089,1775271035524,-500.0,0.00013698,2]
[419668090,1775271035533,-500.0,0.00013698,2]
[419668091,1775271035543,-500.0,0.00013698,2]
[419668092,1775271035552,-500.0,0.00013698,2]
[419668093,1775271035562,-510.0722722,0.00013698,2]
[419668094,1775271035571,-500.0,0.00013698,2]
[419668095,1775271035581,-500.0,0.00013698,2]
[419668096,1775271035591,-500.0,0.00013698,2]
[419668097,1775271035602,-500.0,0.00013698,2]
[419668098,1775271035613,-636.85289052,0.00013698,2]
[419668099,1775271035623,-368.37111171,0.00013698,2]
[419668100,1775271035632,-500.0,0.00013698,2]
[419668101,1775271035643,-500.0,0.00013698,2]
[419668102,1775271035652,-500.0,0.00013698,2]
[419668103,1775271035662,-500.0,0.00013698,2]
[419668104,1775271035671,-500.0,0.00013698,2]
[419668105,1775271035681,-500.0,0.00013698,2]
[419668106,1775271035692,-500.0,0.00013698,2]
[419668107,1775271035703,-500.0,0.00013698,2]
[419668108,1775271035713,-500.0,0.00013698,2]
[419668109,1775271035723,-500.0,0.00013698,2]
[419668110,1775271035733,-500.0,0.00013698,2]
[419668111,1775271035743,-500.0,0.00013698,2]
[419668112,1775271035753,-500.0,0.00013698,2]
[419668113,1775271035762,-500.0,0.00013698,2]
[419668114,1775271035772,-500.0,0.00013698,2]
[419668115,1775271035782,-500.0,0.00013698,2]
[419668116,1775271035792,-500.0,0.00013698,2]
[419668117,1775271035802,-500.0,0.00013698,2]
[419668118,1775271035812,-500.0,0.00013698,2]
[419668119,1775271035822,-500.0,0.00013698,2]
[419668120,1775271035832,-500.0,0.00013698,2]
[419668121,1775271035841,-500.0,0.00013698,2]
[419668122,1775271035851,-500.0,0.00013698,2]
[419668123,1775271035860,-500.0,0.00013698,2]
[419668124,1775271035870,-500.0,0.00013698,2]
[419668125,1775271035879,-443.69759722,0.00013698,2]
[419668126,1775271035888,-500.0,0.00013698,2]
[419668127,1775271035898,-500.0,0.00013698,2]
[419668128,1775271035908,-500.0,0.00013698,2]
[419668129,1775271035917,-500.0,0.00013698,2]
[419668130,1775271035927,-500.0,0.00013698,2]
[419668131,1775271035937,-500.0,0.00013698,2]
[419668132,1775271035947,-500.0,0.00013698,2]
[419668133,1775271035958,-500.0,0.00013698,2]
[419668134,1775271035967,-500.0,0.00013698,2]
[419668135,1775271035977,-500.0,0.00013698,2]
[419668136,1775271035987,-500.0,0.00013698,2]
[419668137,1775271035997,-500.0,0.00013698,2]
[419668138,1775271036007,-500.0,0.00013698,2]
[419668139,1775271036016,-500.0,0.00013698,2]
[419668140,1775271036026,-500.0,0.00013698,2]
[419668141,1775271036037,-500.0,0.00013698,2]
[419668142,1775271036046,-562.5,0.00013698,2]
[419668143,1775271036056,-562.5,0.00013698,2]
[419668144,1775271036068,-562.5,0.00013698,2]
[419668145,1775271036079,-562.5,0.00013698,2]
[419668146,1775271036090,-562.5,0.00013698,2]
[419668147,1775271036101,-562.5,0.00013698,2]
[419668148,1775271036112,-562.5,0.00013698,2]
[419668149,1775271036121,-562.5,0.00013698,2]
[419668150,1775271036131,-562.5,0.00013698,2]
[419668151,1775271036141,-562.5,0.00013698,2]
[419668152,1775271036153,-562.5,0.00013698,2]
[419668153,1775271036163,-562.5,0.00013698,2]
[419668154,1775271036173,-562.5,0.00013698,2]
[419668155,1775271036183,-562.5,0.00013698,2]
[419668156,1775271036194,-562.5,0.00013698,2]
[419668157,1775271036204,-562.5,0.00013698,2]
[419668158,1775271036215,-562.5,0.00013698,2]
[419668159,1775271036224,-562.5,0.00013698,2]
[419668160,1775271036234,-500.0,0.00013698,2]
[419668161,1775271036244,-505.79398612,0.00013698,2]
[419668162,1775271036253,-500.0,0.00013698,2]
[419668163,1775271036262,-523.15319663,0.00013698,2]
[419668164,1775271036272,-500.0,0.00013698,2]
[419668165,1775271036282,-500.0,0.00013698,2]
[419668166,1775271036291,-500.0,0.00013698,2]
[419668167,1775271036300,-500.0,0.00013698,2]
[419668168,1775271036309,-500.0,0.00013698,2]
[419668169,1775271036319,-500.0,0.00013698,2]
[419668170,1775271036330,-500.0,0.00013698,2]
[419668171,1775271036341,-500.0,0.00013698,2]
[419668172,1775271036352,-500.0,0.00013698,2]
[419668173,1775271036363,-500.0,0.00013698,2]
[419668174,1775271036373,-500.0,0.00013698,2]
[419668175,1775271036384,-500.0,0.00013698,2]
[419668176,1775271036394,-500.0,0.00013698,2]
[419668177,1775271036404,-500.0,0.00013698,2]
[419668178,1775271036415,-569.88539164,0.00013698,2]
[419668179,1775271036425,-835.147594,0.00013698,2]
[419668180,1775271036434,-1101.52329,0.00013698,2]
[419668181,1775271036444,-500.0,0.00013698,2]
[419668182,1775271036454,-500.0,0.00013698,2]
[419668183,1775271036463,-500.0,0.00013698,2]
[419668184,1775271036474,-500.0,0.00013698,2]
[419668185,1775271036486,-835.147594,0.00013698,2]
[419668186,1775271036497,-500.0,0.00013698,2]
[419668187,1775271036509,-1101.52329,0.00013698,2]
[419668188,1775271036518,-835.147594,0.00013698,2]
[419668189,1775271036528,-1101.52329,0.00013698,2]
[419668190,1775271036538,-835.147594,0.00013698,2]
[419668191,1775271036548,-1101.52329,0.00013698,2]
[419668192,1775271036559,-507.20323816,0.00013698,2]
[419668193,1775271036568,-500.0,0.00013698,2]
[419668194,1775271036579,-500.0,0.00013698,2]
[419668195,1775271036590,-500.0,0.00013698,2]
[419668196,1775271036601,-500.0,0.00013698,2]
[419668197,1775271036612,-500.0,0.00013698,2]
[419668198,1775271036623,-604.82784772,0.00013698,2]
[419668199,1775271036633,-500.0,0.00013698,2]
[419668200,1775271036642,-500.0,0.00013698,2]
[419668201,1775271036654,-500.0,0.00013698,2]
[419668202,1775271036665,-500.0,0.00013698,2]
[419668203,1775271036674,-500.0,0.00013698,2]
[419668204,1775271036684,-500.0,0.00013698,2]
[419668205,1775271036694,-500.0,0.00013698,2]
[419668206,1775271036704,-500.0,0.00013698,2]
[419668207,1775271036714,-500.0,0.00013698,2]
[419668208,1775271036724,-500.0,0.00013698,2]
[419668209,1775271036734,-500.0,0.00013698,2]
[419668210,1775271036744,-500.0,0.00013698,2]
[419668211,1775271036754,-500.0,0.00013698,2]
[419668212,1775271036764,-500.0,0.00013698,2]
[419668213,1775271036774,-500.0,0.00013698,2]
[419668214,1775271036784,-500.0,0.00013698,2]
[419668215,1775271036795,-721.31,0.00013698,2]
[419668216,1775271036805,-500.0,0.00013698,2]
[419668217,1775271036816,-721.31,0.00013698,2]
[419668218,1775271036826,-500.0,0.00013698,2]
[419668219,1775271036837,-721.31,0.00013698,2]
[419668220,1775271036846,-500.0,0.00013698,2]
[419668221,1775271036856,-721.31,0.00013698,2]
[419668222,1775271036867,-500.0,0.00013698,2]
[419668223,1775271036877,-721.31,0.00013698,2]
[419668224,1775271036887,-500.0,0.00013698,2]
[419668225,1775271036899,-500.0,0.00013698,2]
[419668226,1775271036910,-500.0,0.00013698,2]
[419668227,1775271036920,-500.0,0.00013698,2]
[419668228,1775271036930,-500.0,0.00013698,2]
[419668229,1775271036940,-500.0,0.00013698,2]
[419668230,1775271036951,-500.0,0.00013698,2]
[419668231,1775271036961,-542.26768979,0.00013698,2]
[419668232,1775271036971,-500.0,0.00013698,2]
[419668233,1775271036981,-500.0,0.00013698,2]
[419668234,1775271036990,-500.0,0.00013698,2]
[419668235,1775271037000,-500.0,0.00013698,2]
[419668236,1775271037009,-500.0,0.00013698,2]
[419668237,1775271037018,-150.0,0.00013699,2]
[419668238,1775271037028,-1548.02,0.00013699,2]
[419668239,1775271037038,-166.66,0.00013699,2]
[419668240,1775271037048,-200.0,0.00013699,2]
[419668241,1775271037058,-151.0,0.00013699,2]
[419668242,1775271037067,-151.0,0.00013699,2]
[419668243,1775271037076,-151.0,0.00013699,2]
[419668244,1775271037086,-151.0,0.00013699,2]
[419668245,1775271037096,-151.0,0.00013699,2]
[419668246,1775271037105,-151.0,0.00013699,2]
[419668247,1775271037115,-181.8,0.000137,2]
[419668248,1775271037125,-199.22882644,0.00013744,2]
[419668249,1775271037135,-3629.93446876,0.00013744,2]
[419668250,1775271037144,-12160.38324265,0.00013744,2]
[419668251,1775271037155,-2000.0,0.00013785,2]
[419668252,1775271037164,-166.66,0.00013836,2]
[419668253,1775271037175,-179.12045546,0.00013936,2]
[419668254,1775271037185,-166.66,0.00013973,2]
[419668255,1775271037195,-233.36263514,0.00014003,2]
[419668256,1775271037205,-201.85093358,0.00014021,2]
[419668257,1775271037215,-209.40437684,0.00014032,2]
[419668258,1775271037225,-1115.0,0.00014062,5]
[419668259,1775271037235,-166.66,0.0001411,2]
[419668260,1775271037244,-182.51,0.00014134,2]
[419668261,1775271037255,-152.37745996,0.00014149,2]
[419668262,1775271037264,-316.68698852,0.00014172,2]
[419668263,1775271037274,-166.66,0.00014247,2]
[419668264,1775271037285,-626.05773519,0.00014284,2]
[419668265,1775271037294,-550.43648348,0.00014316,2]
[419668266,1775271037304,-411.4823429,0.00014321,2]
[419668267,1775271037314,-255.8130414,0.00014366,2]
[419668268,1775271037324,-1548.02,0.00014384,2]
[419668269,1775271037335,-166.66,0.00014384,2]
[419668270,1775271037347,-277.17461604,0.00014384,2]
[419668271,1775271037357,-155.0,0.00014398,2]
[419668272,1775271037366,-3629.93446876,0.00014463,2]
[419668273,1775271037376,-12160.38324265,0.00014463,2]
[419668274,1775271037386,-241.08145,0.00014463,2]
[419668275,1775271037396,-752.69141656,0.0001447,2]
[419668276,1775271037405,-748.25,0.00014476,2]
[419668277,1775271037415,-217.15233878,0.0001458,2]
[419668278,1775271037425,-323.78918578,0.00014671,2]
[419668279,1775271037435,-585.15459982,0.00014802,2]
[419668280,1775271037446,-191.24,0.00014963,2]
[419668281,1775271037456,-500.0,0.00014976,2]
[419668282,1775271037467,-500.0,0.00014976,2]
[419668283,1775271037476,-721.31,0.00014976,2]
[419668284,1775271037487,-500.0,0.00014976,2]
[419668285,1775271037497,-500.0,0.00014976,2]
[419668286,1775271037507,-300.0,0.00015,2]
[419668287,1775271037516,-1548.02,0.00015068,2]
[419668288,1775271037526,-225.18697532,0.00015128,2]
[419668289,1775271037535,-562.5,0.00015181,2]
[419668290,1775271037546,-3629.93446876,0.00015181,2]
[419668291,1775271037556,-12160.38324265,0.00015181,2]
[419668292,1775271037566,-10000.0,0.00015205,2]
[419668293,1775271037578,-151.0,0.00015236,2]
[419668294,1775271037589,-157.0,0.000153,2]
[419668295,1775271037600,-711.0,0.00015424,2]
[419668296,1775271037611,-711.0,0.00015437,2]